[Event "CZE-ch U16 Girls 2023"]
[Site "Teplice"]
[Date "2023.03.13"]
[Round "4.9"]
[White "Vavrinkova, Marie"]
[Black "Macova, Marketa"]
[Result "0-1"]
[ECO "D11"]
[WhiteElo "1457"]
[BlackElo "1195"]
[Annotator "NA RC COMBH"]
[PlyCount "58"]
[EventDate "2023.03.09"]
[EventType "swiss"]
[EventCountry "CZE"]
[SourceTitle "playchess.com"]
[Source "ChessBase"]
[SourceQuality "1"]
[TimeControl "40/5400+30:1800+30"]

1. d4 {[%emt 0:00:03]} d5 {[%emt 0:00:26]} 2. c4 {[%emt 0:00:20]} c6 {[%emt 0:00:22]} 3. Nf3 {[%emt 0:00:19]} dxc4 {[%emt 0:01:00]} 4. e4 {[%emt 0:02:40]} b5 {[%emt 0:00:48]} 5. g3 {[%emt 0:01:53]} Nf6 {[%emt 0:03:19]} 6. Qc2 {[%emt 0:03:51]} Bg4 {[%emt 0:01:38]} 7. Nbd2 {[%emt 0:00:50]} e6 {[%emt 0:01:58]} 8. a3 {[%emt 0:02:36]} c5 {[%emt 0:06:55]} 9. dxc5 {[%emt 0:02:05]} Bxc5 {[%emt 0:05:35]} 10. Bg2 {[%emt 0:01:41]} Qb6 {[%emt 0:04:40]} 11. O-O {[%emt 0:02:31]} O-O {[%emt 0:02:15]} 12. a4 {[%emt 0:03:25]} Bxf3 {[%emt 0:04:19]} 13. Bxf3 {[%emt 0:03:46]} Nc6 {[%emt 0:01:46]} 14. axb5 {[%emt 0:04:07]} Nd4 {[%emt 0:01:16]} 15. Qxc4 {[%emt 0:01:57]} Rac8 {[%emt 0:04:55]} 16. Qd3 {[%emt 0:03:57]} Rfd8 {[%emt 0:01:49]} 17. e5 {[%emt 0:04:55]} Nxb5 {[%emt 0:04:46]} 18. Qb1 {[%emt 0:02:07]} Nd5 {[%emt 0:04:55]} 19. Ne4 {[%emt 0:05:02]} Nd4 {[%emt 0:04:51]} 20. Bg2 {[%emt 0:03:32]} h6 {[%emt 0:07:58]} 21. Kh1 {[%emt 0:04:15]} Nb4 {[%emt 0:08:52]} 22. Nxc5 {[%emt 0:03:49]} Rxc5 {[%emt 0:02:55]} 23. Qe4 {[%emt 0:03:27]} Rc2 {[%emt 0:04:00]} 24. Qg4 {[%emt 0:04:42]} Nf5 {[%emt 0:01:45]} 25. Qf3 {[%emt 0:10:21]} Nd3 {[%emt 0:03:08]} 26. Kg1 {[%emt 0:05:05]} Nd4 {[%emt 0:02:12]} 27. Qe3 {[%emt 0:04:37]} Ne2+ {[%emt 0:03:41]} 28. Kh1 {[%emt 0:00:12]} Nexc1 {[%emt 0:02:06]} 29. Qxb6 {[%emt 0:02:37]} axb6 {[%emt 0:00:27]} 0-1

[Event "CZE-ch U16 Girls 2023"]
[Site "Teplice"]
[Date "2023.03.13"]
[Round "4.10"]
[White "Foldynova, Julie"]
[Black "Mullerova, Karina Nela"]
[Result "1/2-1/2"]
[ECO "C00"]
[WhiteElo "1100"]
[BlackElo "1283"]
[Annotator "NA RC COMBH"]
[PlyCount "74"]
[EventDate "2023.03.09"]
[EventType "swiss"]
[EventCountry "CZE"]
[SourceTitle "playchess.com"]
[Source "ChessBase"]
[SourceQuality "1"]
[TimeControl "40/5400+30:1800+30"]

1. e4 {[%emt 0:00:04]} e6 {[%emt 0:00:10]} 2. d4 {[%emt 0:00:21]} b6 {[%emt 0:00:07]} 3. Nc3 {[%emt 0:01:01]} Bb4 {[%emt 0:00:34]} 4. Bd2 {[%emt 0:00:21]} Bb7 {[%emt 0:01:07]} 5. Bd3 {[%emt 0:01:04]} f5 {[%emt 0:02:50]} 6. f3 {[%emt 0:02:23]} Qh4+ {[%emt 0:02:15]} 7. g3 {[%emt 0:02:28]} Qh5 {[%emt 0:00:25]} 8. Qe2 {[%emt 0:02:49]} Ne7 {[%emt 0:08:38]} 9. O-O-O {[%emt 0:10:13]} fxe4 {[%emt 0:08:48]} 10. fxe4 {[%emt 0:03:17]} Qxe2 {[%emt 0:02:39]} 11. Ngxe2 {[%emt 0:00:26]} Ng6 {[%emt 0:05:38]} 12. Rhf1 {[%emt 0:00:54]} e5 {[%emt 0:00:45]} 13. d5 {[%emt 0:02:12]} Na6 {[%emt 0:03:18]} 14. a3 {[%emt 0:02:53]} Bxc3 {[%emt 0:03:34]} 15. Nxc3 {[%emt 0:01:35]} O-O-O {[%emt 0:05:00]} 16. Rf7 {[%emt 0:01:12]} Rhg8 {[%emt 0:00:39]} 17. Rdf1 {[%emt 0:02:17]} Rdf8 {[%emt 0:02:16]} 18. Rxf8+ {[%emt 0:01:11]} Rxf8 {[%emt 0:00:06]} 19. Rxf8+ {[%emt 0:00:07]} Nxf8 {[%emt 0:00:05]} 20. b4 {[%emt 0:00:38]} c6 {[%emt 0:02:10]} 21. b5 {[%emt 0:04:42]} Nc5 {[%emt 0:05:01]} 22. Bc4 {[%emt 0:02:44]} cxd5 {[%emt 0:02:22]} 23. Bxd5 {[%emt 0:01:02]} Bxd5 {[%emt 0:01:04]} 24. exd5 {[%emt 0:00:09]} d6 {[%emt 0:01:30]} 25. Be3 {[%emt 0:01:05]} h6 {[%emt 0:01:46]} 26. Bxc5 {[%emt 0:00:27]} bxc5 {[%emt 0:00:13]} 27. Ne4 {[%emt 0:00:48]} Kc7 {[%emt 0:00:19]} 28. Kb2 {[%emt 0:01:03]} Nd7 {[%emt 0:00:45]} 29. Kb3 {[%emt 0:00:58]} Nb6 {[%emt 0:01:06]} 30. c4 {[%emt 0:01:04]} Nd7 {[%emt 0:00:52]} 31. a4 {[%emt 0:00:56]} Nf6 {[%emt 0:00:17]} 32. Nxf6 {[%emt 0:00:39]} gxf6 {[%emt 0:00:09]} 33. a5 a6 {[%emt 0:03:27]} 34. b6+ {[%emt 0:01:04]} Kd7 {[%emt 0:01:37]} 35. Kc3 {[%emt 0:00:31]} h5 {[%emt 0:00:59]} 36. Kd3 {[%emt 0:00:19]} f5 {[%emt 0:00:32]} 37. Ke3 {[%emt 0:01:01]} Kc8 {[%emt 0:01:04]} 1/2-1/2

[Event "CZE-ch U16 Girls 2023"]
[Site "Teplice"]
[Date "2023.03.13"]
[Round "4.11"]
[White "Sterikova, Marketa"]
[Black "Souralova, Jana"]
[Result "1/2-1/2"]
[ECO "C50"]
[WhiteElo "1254"]
[BlackElo "1187"]
[Annotator "NA RC COMBH"]
[PlyCount "61"]
[EventDate "2023.03.09"]
[EventType "swiss"]
[EventCountry "CZE"]
[SourceTitle "playchess.com"]
[Source "ChessBase"]
[SourceQuality "1"]
[TimeControl "40/5400+30:1800+30"]

1. e4 {[%emt 0:00:04]} e5 {[%emt 0:00:06]} 2. Nf3 {[%emt 0:00:08]} Nc6 {[%emt 0:00:05]} 3. Bc4 {[%emt 0:00:11]} Nf6 {[%emt 0:00:16]} 4. d3 {[%emt 0:00:13]} Bc5 {[%emt 0:00:21]} 5. Nc3 {[%emt 0:00:13]} d6 {[%emt 0:00:16]} 6. Bg5 {[%emt 0:00:08]} h6 {[%emt 0:01:12]} 7. Be3 Bb6 {[%emt 0:00:31]} 8. h3 {[%emt 0:00:58]} O-O {[%emt 0:00:31]} 9. O-O {[%emt 0:00:12]} Be6 {[%emt 0:00:15]} 10. Bb3 {[%emt 0:01:09]} Qd7 {[%emt 0:01:35]} 11. Bxe6 {[%emt 0:00:35]} Qxe6 {[%emt 0:00:23]} 12. Qd2 {[%emt 0:00:18]} Bxe3 {[%emt 0:03:50]} 13. fxe3 {[%emt 0:00:12]} Rad8 {[%emt 0:07:43]} 14. Rfe1 {[%emt 0:02:55]} Ne7 {[%emt 0:01:31]} 15. d4 {[%emt 0:00:50]} Ng6 {[%emt 0:01:29]} 16. d5 {[%emt 0:01:09]} Qd7 {[%emt 0:00:28]} 17. Qd3 {[%emt 0:01:32]} c6 {[%emt 0:00:42]} 18. Ne2 {[%emt 0:01:49]} cxd5 {[%emt 0:02:23]} 19. exd5 {[%emt 0:00:27]} Qc7 {[%emt 0:04:59]} 20. e4 {[%emt 0:00:26]} Nh5 {[%emt 0:07:57]} 21. g3 {[%emt 0:08:18]} Rc8 {[%emt 0:01:24]} 22. c3 {[%emt 0:00:27]} Qd7 {[%emt 0:05:02]} 23. Kh2 {[%emt 0:03:26]} f5 {[%emt 0:02:18]} 24. exf5 {[%emt 0:01:58]} Qxf5 {[%emt 0:00:08]} 25. Qxf5 {[%emt 0:00:10]} Rxf5 {[%emt 0:00:06]} 26. Rf1 {[%emt 0:00:25]} Rf7 {[%emt 0:08:32]} 27. Nd2 {[%emt 0:00:43]} Nf6 {[%emt 0:01:31]} 28. c4 {[%emt 0:01:04]} Rcf8 {[%emt 0:02:08]} 29. Kg2 {[%emt 0:00:37]} a6 {[%emt 0:06:11]} 30. Nc3 {[%emt 0:00:36]} Rb8 {[%emt 0:01:41]} 31. b3 {[%emt 0:00:11]} 1/2-1/2